fUSD/lending_fUSD_20260614
["ID","MTS","AMOUNT","RATE_DAILY","PERIOD"]
[425056296,1781447504000,-500.0,0.00029315,8]
[425056303,1781447504000,-500.0,0.00029315,8]
[425056300,1781447504000,-552.72,0.00029315,8]
[425056305,1781447504000,-500.0,0.00029315,8]
[425056315,1781447504000,-1300.69,0.00029315,8]
[425056316,1781447504000,-555.45577077,0.00029315,8]
[425056304,1781447504000,-500.0,0.00029315,8]
[425056307,1781447504000,-500.0,0.00029315,8]
[425056312,1781447504000,-500.0,0.00029315,8]
[425056314,1781447504000,-801.17,0.00029315,8]
[425056313,1781447504000,-500.0,0.00029315,8]
[425056308,1781447504000,-685.22,0.00029315,8]
[425056295,1781447504000,-1526.43,0.00029315,8]
[425056350,1781447504000,-335.53110399,0.00029315,8]
[425056393,1781447504000,-1031.94,0.00029315,8]
[425056346,1781447504000,-648.16,0.00029315,8]
[425056390,1781447504000,-532.02,0.00029315,8]
[425056391,1781447504000,-500.0,0.00029315,8]
[425056379,1781447504000,-500.0,0.00029315,8]
[425056384,1781447504000,-500.0,0.00029315,8]
[425056389,1781447504000,-1281.05,0.00029315,8]
[425056388,1781447504000,-500.0,0.00029315,8]
[425056382,1781447504000,-1053.08,0.00029315,8]
[425056381,1781447504000,-500.0,0.00029315,8]
[425056387,1781447504000,-500.0,0.00029315,8]
[425056383,1781447504000,-500.0,0.00029315,8]
[425056386,1781447504000,-500.0,0.00029315,8]
[425056385,1781447504000,-500.0,0.00029315,8]
[425056396,1781447504000,-500.0,0.00029315,8]
[425056380,1781447504000,-672.85,0.00029315,8]
[425056394,1781447504000,-500.0,0.00029315,8]
[425056399,1781447504000,-1604.32,0.00029315,8]
[425056402,1781447504000,-664.01,0.00029315,8]
[425056401,1781447504000,-1015.25,0.00029315,8]
[425056398,1781447504000,-500.0,0.00029315,8]
[425056397,1781447504000,-500.0,0.00029315,8]
[425056395,1781447504000,-363.15611224,0.00029315,8]
[425056400,1781447504000,-500.0,0.00029315,8]
[425056404,1781447504000,-500.0,0.00029315,8]
[425056406,1781447504000,-500.0,0.00029315,8]
[425056405,1781447504000,-1047.49,0.00029315,8]
[425056407,1781447504000,-500.0,0.00029315,8]
[425056349,1781447504000,-500.0,0.00029315,8]
[425056408,1781447504000,-500.0,0.00029315,8]
[425056403,1781447504000,-500.0,0.00029315,8]
[425056375,1781447504000,-500.0,0.00029315,8]
[425056392,1781447504000,-500.0,0.00029315,8]
[425056370,1781447504000,-500.0,0.00029315,8]
[425056345,1781447504000,-1031.86,0.00029315,8]
[425056376,1781447504000,-500.0,0.00029315,8]
[425056347,1781447504000,-800.55,0.00029315,8]
[425056348,1781447504000,-682.21,0.00029315,8]
[425056352,1781447504000,-500.0,0.00029315,8]
[425056353,1781447504000,-546.49,0.00029315,8]
[425056355,1781447504000,-500.0,0.00029315,8]
[425056365,1781447504000,-500.0,0.00029315,8]
[425056354,1781447504000,-500.0,0.00029315,8]
[425056356,1781447504000,-500.0,0.00029315,8]
[425056357,1781447504000,-1400.43,0.00029315,8]
[425056361,1781447504000,-1274.35,0.00029315,8]
[425056358,1781447504000,-500.0,0.00029315,8]
[425056362,1781447504000,-500.0,0.00029315,8]
[425056351,1781447504000,-500.0,0.00029315,8]
[425056363,1781447504000,-500.0,0.00029315,8]
[425056360,1781447504000,-500.0,0.00029315,8]
[425056371,1781447504000,-608.15,0.00029315,8]
[425056374,1781447504000,-1222.28,0.00029315,8]
[425056372,1781447504000,-1189.57,0.00029315,8]
[425056373,1781447504000,-500.0,0.00029315,8]
[425056369,1781447504000,-500.0,0.00029315,8]
[425056377,1781447504000,-500.0,0.00029315,8]
[425056366,1781447504000,-500.0,0.00029315,8]
[425056368,1781447504000,-500.0,0.00029315,8]
[425056359,1781447504000,-500.0,0.00029315,8]
[425056378,1781447504000,-1452.09,0.00029315,8]
[425056367,1781447504000,-500.0,0.00029315,8]
[425056364,1781447504000,-688.19,0.00029315,8]
[425056450,1781447505000,-500.0,0.00029315,8]
[425056444,1781447505000,-853.99,0.00029315,8]
[425056442,1781447505000,-500.0,0.00029315,8]
[425056443,1781447505000,-500.0,0.00029315,8]
[425056448,1781447505000,-479.40503666,0.00029315,8]
[425056445,1781447505000,-806.88,0.00029315,8]
[425056446,1781447505000,-500.0,0.00029315,8]
[425056451,1781447505000,-2153.84,0.00029315,8]
[425056447,1781447505000,-500.0,0.00029315,8]
[425056452,1781447505000,-340.5426934,0.00029315,8]
[425056454,1781447505000,-500.0,0.00029315,8]
[425056453,1781447505000,-866.85,0.00029315,8]
[425056449,1781447505000,-544.6,0.00029315,8]
[425056466,1781447505000,-500.0,0.00029315,8]
[425056457,1781447505000,-500.0,0.00029315,8]
[425056455,1781447505000,-500.0,0.00029315,8]
[425056459,1781447505000,-556.37,0.00029315,8]
[425056458,1781447505000,-815.68,0.00029315,8]
[425056465,1781447505000,-534.02,0.00029315,8]
[425056461,1781447505000,-500.0,0.00029315,8]
[425056460,1781447505000,-500.0,0.00029315,8]
[425056463,1781447505000,-500.0,0.00029315,8]
[425056462,1781447505000,-564.36225746,0.00029315,8]
[425056464,1781447505000,-790.09,0.00029315,8]
[425056467,1781447505000,-520.69,0.00029315,8]
[425056469,1781447505000,-500.0,0.00029315,8]
[425056441,1781447505000,-510.28,0.00029315,8]
[425056456,1781447505000,-500.0,0.00029315,8]
[425056437,1781447505000,-500.0,0.00029315,7]
[425056416,1781447505000,-766.55,0.00029315,8]
[425056435,1781447505000,-554.77,0.00029315,8]
[425056473,1781447505000,-535.49862136,0.00029315,8]
[425056414,1781447505000,-2107.14,0.00029315,8]
[425056411,1781447505000,-500.0,0.00029315,8]
[425056412,1781447505000,-1037.86,0.00029315,8]
[425056410,1781447505000,-500.0,0.00029315,8]
[425056413,1781447505000,-773.85,0.00029315,8]
[425056409,1781447505000,-500.0,0.00029315,8]
[425056415,1781447505000,-1207.41,0.00029315,8]
[425056417,1781447505000,-500.0,0.00029315,8]
[425056419,1781447505000,-508.13,0.00029315,8]
[425056418,1781447505000,-500.0,0.00029315,8]
[425056429,1781447505000,-841.95,0.00029315,8]
[425056420,1781447505000,-1099.99,0.00029315,8]
[425056424,1781447505000,-671.88,0.00029315,8]
[425056425,1781447505000,-1425.15,0.00029315,8]
[425056428,1781447505000,-520.02,0.00029315,8]
[425056421,1781447505000,-586.53,0.00029315,8]
[425056426,1781447505000,-1195.63,0.00029315,8]
[425056427,1781447505000,-1398.15,0.00029315,8]
[425056423,1781447505000,-500.0,0.00029315,8]
[425056422,1781447505000,-899.88,0.00029315,8]
[425056431,1781447505000,-500.0,0.00029315,8]
[425056430,1781447505000,-500.0,0.00029315,8]
[425056434,1781447505000,-1132.03,0.00029315,8]
[425056433,1781447505000,-500.0,0.00029315,8]
[425056432,1781447505000,-500.0,0.00029315,8]
[425056438,1781447505000,-500.0,0.00029315,8]
[425056439,1781447505000,-638.31,0.00029315,8]
[425056436,1781447505000,-607.25,0.00029315,8]
[425056440,1781447505000,-549.36287639,0.00029315,8]
[425056470,1781447505000,-648.3,0.00029315,8]
[425056483,1781447505000,-597.42,0.00029315,8]
[425056474,1781447505000,-500.0,0.00029315,8]
[425056507,1781447505000,-500.0,0.00029315,8]
[425056518,1781447505000,-566.53,0.00029315,8]
[425056506,1781447505000,-500.0,0.00029315,8]
[425056517,1781447505000,-892.45,0.00029315,8]
[425056508,1781447505000,-639.31,0.00029315,8]
[425056511,1781447505000,-504.6,0.00029315,8]
[425056515,1781447505000,-500.0,0.00029315,8]
[425056512,1781447505000,-533.2,0.00029315,8]
[425056509,1781447505000,-317.49016016,0.00029315,8]
[425056510,1781447505000,-623.88,0.00029315,8]
[425056514,1781447505000,-1046.11,0.00029315,8]
[425056513,1781447505000,-715.69,0.00029315,8]
[425056516,1781447505000,-500.0,0.00029315,8]
[425056502,1781447505000,-500.0,0.00029315,8]
[425056521,1781447505000,-500.0,0.00029315,8]
[425056524,1781447505000,-500.0,0.00029315,8]
[425056522,1781447505000,-500.0,0.00029315,8]
[425056520,1781447505000,-500.0,0.00029315,8]
[425056528,1781447505000,-1199.94,0.00029315,8]
[425056530,1781447505000,-191.37724652,0.00029315,8]
[425056525,1781447505000,-500.0,0.00029315,8]
[425056523,1781447505000,-500.0,0.00029315,8]
[425056527,1781447505000,-500.0,0.00029315,8]
[425056526,1781447505000,-714.38,0.00029315,8]
[425056531,1781447505000,-536.09,0.00029315,8]
[425056533,1781447505000,-500.0,0.00029315,8]
[425056532,1781447505000,-611.86,0.00029315,8]
[425056471,1781447505000,-500.0,0.00029315,8]
[425056519,1781447505000,-500.0,0.00029315,8]
[425056503,1781447505000,-559.91,0.00029315,8]
[425056529,1781447505000,-529.52,0.00029315,8]
[425056500,1781447505000,-500.0,0.00029315,8]
[425056501,1781447505000,-872.27,0.00029315,8]
[425056478,1781447505000,-500.0,0.00029315,8]
[425056472,1781447505000,-500.0,0.00029315,8]
[425056468,1781447505000,-1217.4,0.00029315,8]
[425056476,1781447505000,-500.0,0.00029315,8]
[425056477,1781447505000,-500.0,0.00029315,8]
[425056479,1781447505000,-500.0,0.00029315,8]
[425056480,1781447505000,-500.0,0.00029315,8]
[425056482,1781447505000,-543.72,0.00029315,8]
[425056490,1781447505000,-500.0,0.00029315,8]
[425056491,1781447505000,-363.07480416,0.00029315,8]
[425056492,1781447505000,-1254.7,0.00029315,8]
[425056481,1781447505000,-1022.53,0.00029315,8]
[425056489,1781447505000,-500.0,0.00029315,8]
[425056475,1781447505000,-615.97698167,0.00029315,8]
[425056485,1781447505000,-500.0,0.00029315,8]
[425056487,1781447505000,-573.76,0.00029315,8]
[425056498,1781447505000,-500.0,0.00029315,8]
[425056496,1781447505000,-1746.88,0.00029315,8]
[425056504,1781447505000,-500.0,0.00029315,8]
[425056494,1781447505000,-689.06,0.00029315,8]
[425056499,1781447505000,-784.28,0.00029315,8]
[425056497,1781447505000,-500.0,0.00029315,8]
[425056495,1781447505000,-723.54,0.00029315,8]
[425056493,1781447505000,-500.0,0.00029315,8]
[425056488,1781447505000,-500.0,0.00029315,8]
[425056486,1781447505000,-1193.0,0.00029315,8]
[425056484,1781447505000,-607.60264316,0.00029315,8]
[425056505,1781447505000,-500.0,0.00029315,8]
[425056560,1781447506000,-1236.08,0.00029315,8]
[425056562,1781447506000,-500.0,0.00029315,8]
[425056559,1781447506000,-648.66,0.00029315,8]
[425056563,1781447506000,-500.0,0.00029315,8]
[425056564,1781447506000,-1086.15,0.00029315,8]
[425056561,1781447506000,-500.0,0.00029315,8]
[425056566,1781447506000,-500.0,0.00029315,8]
[425056568,1781447506000,-752.56,0.00029315,8]
[425056569,1781447506000,-500.0,0.00029315,8]
[425056567,1781447506000,-1794.38,0.00029315,8]
[425056574,1781447506000,-1362.07,0.00029315,8]
[425056571,1781447506000,-500.0,0.00029315,8]
[425056570,1781447506000,-500.0,0.00029315,8]
[425056572,1781447506000,-500.0,0.00029315,8]
[425056573,1781447506000,-500.0,0.00029315,8]
[425056577,1781447506000,-658.12,0.00029315,8]
[425056578,1781447506000,-500.0,0.00029315,8]
[425056580,1781447506000,-710.6,0.00029315,8]
[425056553,1781447506000,-500.0,0.00029315,8]
[425056575,1781447506000,-1214.87,0.00029315,8]
[425056565,1781447506000,-500.0,0.00029315,8]
[425056555,1781447506000,-500.0,0.00029315,8]
[425056542,1781447506000,-500.0,0.00029315,8]
[425056558,1781447506000,-500.0,0.00029315,8]
[425056576,1781447506000,-712.15,0.00029315,8]
[425056535,1781447506000,-500.0,0.00029315,8]
[425056534,1781447506000,-1220.66,0.00029315,8]
[425056543,1781447506000,-500.0,0.00029315,8]
[425056540,1781447506000,-694.6,0.00029315,8]
[425056537,1781447506000,-1285.7,0.00029315,8]
[425056541,1781447506000,-500.0,0.00029315,8]
[425056536,1781447506000,-1992.83,0.00029315,8]
[425056538,1781447506000,-579.58277843,0.00029315,8]
[425056539,1781447506000,-500.0,0.00029315,8]
[425056545,1781447506000,-694.97,0.00029315,8]
[425056544,1781447506000,-500.0,0.00029315,8]
[425056546,1781447506000,-577.76,0.00029315,8]
[425056547,1781447506000,-638.67,0.00029315,8]
[425056549,1781447506000,-500.0,0.00029315,8]
[425056554,1781447506000,-500.0,0.00029315,8]
[425056551,1781447506000,-500.0,0.00029315,8]
[425056548,1781447506000,-681.48,0.00029315,8]
[425056550,1781447506000,-1019.53,0.00029315,8]
[425056552,1781447506000,-306.57067933,0.00029315,8]
[425056557,1781447506000,-606.2,0.00029315,8]
[425056556,1781447506000,-770.14,0.00029315,8]
[425056579,1781447506000,-500.0,0.00029315,8]
[425056583,1781447506000,-500.0,0.00029315,8]
[425056627,1781447506000,-944.34,0.00029315,8]
[425056608,1781447506000,-500.0,0.00029315,8]
[425056609,1781447506000,-1016.47,0.00029315,8]
[425056615,1781447506000,-856.87,0.00029315,8]
[425056613,1781447506000,-519.48,0.00029315,8]
[425056611,1781447506000,-1038.13,0.00029315,8]
[425056612,1781447506000,-284.11906322,0.00029315,8]
[425056614,1781447506000,-500.0,0.00029315,8]
[425056617,1781447506000,-597.59,0.00029315,8]
[425056626,1781447506000,-500.0,0.00029315,8]
[425056607,1781447506000,-500.0,0.00029315,8]
[425056625,1781447506000,-663.09,0.00029315,8]
[425056618,1781447506000,-500.0,0.00029315,8]
[425056621,1781447506000,-1068.73,0.00029315,8]
[425056620,1781447506000,-500.0,0.00029315,8]
[425056619,1781447506000,-500.0,0.00029315,8]
[425056623,1781447506000,-500.0,0.00029315,8]
[425056622,1781447506000,-657.3,0.00029315,8]
[425056624,1781447506000,-1514.46,0.00029315,8]
[425056584,1781447506000,-1530.48,0.00029315,8]
[425056628,1781447506000,-675.87,0.00029315,8]
[425056616,1781447506000,-565.44,0.00029315,8]
[425056606,1781447506000,-579.71,0.00029315,8]
[425056610,1781447506000,-500.0,0.00029315,8]
[425056604,1781447506000,-1199.11,0.00029315,8]
[425056581,1781447506000,-556.38,0.00029315,8]
[425056585,1781447506000,-500.0,0.00029315,8]
[425056591,1781447506000,-500.0,0.00029315,8]
[425056582,1781447506000,-932.78,0.00029315,8]
[425056587,1781447506000,-500.0,0.00029315,8]
[425056586,1781447506000,-500.0,0.00029315,8]
[425056605,1781447506000,-500.0,0.00029315,8]
[425056588,1781447506000,-500.0,0.00029315,8]
[425056590,1781447506000,-836.13,0.00029315,8]
[425056597,1781447506000,-500.0,0.00029315,8]
[425056592,1781447506000,-500.0,0.00029315,8]
[425056589,1781447506000,-500.0,0.00029315,8]
[425056596,1781447506000,-500.0,0.00029315,8]
[425056593,1781447506000,-1329.36,0.00029315,8]
[425056594,1781447506000,-578.24,0.00029315,8]
[425056598,1781447506000,-987.41,0.00029315,8]
[425056600,1781447506000,-500.0,0.00029315,8]
[425056601,1781447506000,-500.0,0.00029315,8]
[425056603,1781447506000,-747.07,0.00029315,8]
[425056602,1781447506000,-500.0,0.00029315,8]
[425056599,1781447506000,-500.0,0.00029315,8]
[425056595,1781447506000,-500.0,0.00029315,8]
[425056659,1781447507000,-835.21,0.00029315,8]
[425056667,1781447507000,-3014.18,0.00029315,8]
[425056669,1781447507000,-500.0,0.00029315,8]
[425056670,1781447507000,-500.0,0.00029315,8]
[425056666,1781447507000,-500.0,0.00029315,8]
[425056674,1781447507000,-992.68,0.00029315,8]
[425056662,1781447507000,-500.0,0.00029315,8]
[425056663,1781447507000,-880.78,0.00029315,8]
[425056673,1781447507000,-869.12,0.00029315,8]
[425056661,1781447507000,-500.0,0.00029315,8]
[425056668,1781447507000,-500.0,0.00029315,8]
[425056664,1781447507000,-500.0,0.00029315,8]
[425056665,1781447507000,-616.02,0.00029315,8]
[425056684,1781447507000,-1539.52,0.00029315,8]
[425056671,1781447507000,-500.0,0.00029315,8]
[425056675,1781447507000,-593.55050799,0.00029315,8]
[425056677,1781447507000,-1461.98,0.00029315,8]
[425056681,1781447507000,-3250.13,0.00029315,8]
[425056676,1781447507000,-500.0,0.00029315,8]
[425056680,1781447507000,-500.0,0.00029315,8]
[425056685,1781447507000,-500.0,0.00029315,8]
[425056678,1781447507000,-500.0,0.00029315,8]
[425056686,1781447507000,-500.0,0.00029315,8]
[425056682,1781447507000,-469.27999797,0.00029315,8]
[425056683,1781447507000,-641.52,0.00029315,8]
[425056679,1781447507000,-470.67933057,0.00029315,8]
[425056652,1781447507000,-500.0,0.00029315,8]
[425056672,1781447507000,-500.0,0.00029315,8]
[425056655,1781447507000,-648.15,0.00029315,8]
[425056636,1781447507000,-500.0,0.00029315,8]
[425056660,1781447507000,-500.0,0.00029315,8]
[425056629,1781447507000,-500.0,0.00029315,8]
[425056630,1781447507000,-500.0,0.00029315,8]
[425056632,1781447507000,-881.04,0.00029315,8]
[425056633,1781447507000,-500.0,0.00029315,8]
[425056631,1781447507000,-1042.52,0.00029315,8]
[425056635,1781447507000,-702.19,0.00029315,8]
[425056634,1781447507000,-642.31,0.00029315,8]
[425056637,1781447507000,-500.0,0.00029315,8]
[425056638,1781447507000,-845.18,0.00029315,8]
[425056640,1781447507000,-500.0,0.00029315,8]
[425056650,1781447507000,-500.0,0.00029315,8]
[425056639,1781447507000,-631.21,0.00029315,8]
[425056658,1781447507000,-2000.0,0.00029315,2]
[425056641,1781447507000,-500.0,0.00029315,8]
[425056642,1781447507000,-729.66,0.00029315,8]
[425056645,1781447507000,-500.0,0.00029315,8]
[425056649,1781447507000,-500.0,0.00029315,8]
[425056648,1781447507000,-1150.58,0.00029315,8]
[425056644,1781447507000,-500.0,0.00029315,8]
[425056646,1781447507000,-500.0,0.00029315,8]
[425056647,1781447507000,-500.0,0.00029315,8]
[425056651,1781447507000,-532.23,0.00029315,8]
[425056656,1781447507000,-500.0,0.00029315,8]
[425056653,1781447507000,-657.48,0.00029315,8]
[425056654,1781447507000,-564.84,0.00029315,8]
[425056657,1781447507000,-500.0,0.00029315,8]
[425056643,1781447507000,-815.38,0.00029315,8]
[425056688,1781447507000,-500.0,0.00029315,8]
[425056748,1781447507000,-1675.9,0.00029315,8]
[425056690,1781447507000,-692.78,0.00029315,8]
[425056715,1781447507000,-592.38,0.00029315,8]
[425056718,1781447507000,-1169.04,0.00029315,8]
[425056716,1781447507000,-500.0,0.00029315,8]
[425056724,1781447507000,-605.88,0.00029315,8]
[425056726,1781447507000,-702.01,0.00029315,8]
[425056728,1781447507000,-502.0,0.00029315,8]
[425056732,1781447507000,-500.0,0.00029315,8]
[425056730,1781447507000,-682.04,0.00029315,8]
[425056727,1781447507000,-500.0,0.00029315,8]
[425056735,1781447507000,-500.0,0.00029315,8]
[425056734,1781447507000,-966.37,0.00029315,8]
[425056731,1781447507000,-500.0,0.00029315,8]
[425056725,1781447507000,-720.7,0.00029315,8]
[425056729,1781447507000,-2238.28,0.00029315,8]
[425056733,1781447507000,-500.0,0.00029315,8]
[425056736,1781447507000,-2663.08,0.00029315,8]
[425056738,1781447507000,-580.54,0.00029315,8]
[425056737,1781447507000,-2017.64,0.00029315,8]
[425056739,1781447507000,-623.6,0.00029315,8]
[425056747,1781447507000,-500.0,0.00029315,8]
[425056742,1781447507000,-500.0,0.00029315,8]
[425056745,1781447507000,-543.63,0.00029315,8]
[425056746,1781447507000,-500.0,0.00029315,8]
[425056741,1781447507000,-550.82,0.00029315,8]
[425056740,1781447507000,-500.0,0.00029315,8]
[425056743,1781447507000,-1157.66,0.00029315,8]
[425056691,1781447507000,-540.29,0.00029315,8]
[425056719,1781447507000,-558.94,0.00029315,8]
[425056713,1781447507000,-674.5,0.00029315,8]
[425056744,1781447507000,-842.22,0.00029315,8]
[425056714,1781447507000,-1701.25,0.00029315,8]
[425056717,1781447507000,-500.0,0.00029315,8]
[425056689,1781447507000,-500.0,0.00029315,8]
[425056696,1781447507000,-553.44,0.00029315,8]
[425056697,1781447507000,-500.0,0.00029315,8]
[425056693,1781447507000,-1661.43,0.00029315,8]
[425056695,1781447507000,-500.0,0.00029315,8]
[425056694,1781447507000,-743.01,0.00029315,8]
[425056692,1781447507000,-500.0,0.00029315,8]
[425056698,1781447507000,-920.43,0.00029315,8]
[425056700,1781447507000,-500.0,0.00029315,8]
[425056704,1781447507000,-605.61,0.00029315,8]
[425056701,1781447507000,-509.71,0.00029315,8]
[425056702,1781447507000,-662.85,0.00029315,8]
[425056687,1781447507000,-870.51,0.00029315,8]
[425056703,1781447507000,-500.0,0.00029315,8]
[425056722,1781447507000,-500.0,0.00029315,8]
[425056723,1781447507000,-500.0,0.00029315,8]
[425056720,1781447507000,-500.0,0.00029315,8]
[425056721,1781447507000,-500.0,0.00029315,8]
[425056699,1781447507000,-1059.33,0.00029315,8]
[425056712,1781447507000,-500.0,0.00029315,8]
[425056711,1781447507000,-500.0,0.00029315,8]
[425056708,1781447507000,-155.58563477,0.00029315,8]
[425056707,1781447507000,-2667.75,0.00029315,8]
[425056709,1781447507000,-500.0,0.00029315,8]
[425056706,1781447507000,-500.0,0.00029315,8]
[425056705,1781447507000,-698.01,0.00029315,8]
[425056710,1781447507000,-500.0,0.00029315,8]
[425056789,1781447508000,-500.0,0.00029315,8]
[425056788,1781447508000,-500.0,0.00029315,8]
[425056786,1781447508000,-3026.85,0.00029315,8]
[425056797,1781447508000,-528.8,0.00029315,8]
[425056777,1781447508000,-500.0,0.00029315,8]
[425056784,1781447508000,-500.0,0.00029315,8]
[425056782,1781447508000,-702.05,0.00029315,8]
[425056783,1781447508000,-4182.59,0.00029315,8]
[425056775,1781447508000,-825.79,0.00029315,8]
[425056778,1781447508000,-704.65,0.00029315,8]
[425056787,1781447508000,-500.0,0.00029315,8]
[425056792,1781447508000,-2931.64,0.00029315,8]
[425056794,1781447508000,-500.0,0.00029315,8]
[425056796,1781447508000,-3706.06,0.00029315,8]
[425056790,1781447508000,-500.0,0.00029315,8]
[425056795,1781447508000,-742.57,0.00029315,8]
[425056793,1781447508000,-500.0,0.00029315,8]
[425056798,1781447508000,-500.0,0.00029315,8]
[425056800,1781447508000,-518.74,0.00029315,8]
[425056801,1781447508000,-658.84,0.00029315,8]
[425056805,1781447508000,-500.0,0.00029315,8]
[425056799,1781447508000,-500.0,0.00029315,8]
[425056804,1781447508000,-1682.54,0.00029315,8]
[425056803,1781447508000,-500.0,0.00029315,8]
[425056781,1781447508000,-500.0,0.00029315,8]
[425056791,1781447508000,-500.0,0.00029315,8]
[425056779,1781447508000,-1082.98,0.00029315,8]
[425056773,1781447508000,-500.0,0.00029315,8]
[425056785,1781447508000,-500.0,0.00029315,8]
[425056749,1781447508000,-1000.0,0.00029315,8]
[425056752,1781447508000,-500.0,0.00029315,8]
[425056754,1781447508000,-5751.63,0.00029315,8]
[425056756,1781447508000,-500.0,0.00029315,8]
[425056751,1781447508000,-500.0,0.00029315,8]
[425056755,1781447508000,-500.0,0.00029315,8]
[425056759,1781447508000,-500.0,0.00029315,8]
[425056760,1781447508000,-877.23,0.00029315,8]
[425056758,1781447508000,-500.0,0.00029315,8]
[425056753,1781447508000,-1427.79,0.00029315,8]
[425056750,1781447508000,-703.84,0.00029315,8]
[425056757,1781447508000,-534.69193424,0.00029315,8]
[425056780,1781447508000,-500.0,0.00029315,8]
[425056772,1781447508000,-500.0,0.00029315,8]
[425056761,1781447508000,-546.64,0.00029315,8]
[425056763,1781447508000,-500.0,0.00029315,8]
[425056765,1781447508000,-940.15,0.00029315,8]
[425056764,1781447508000,-500.0,0.00029315,8]
[425056767,1781447508000,-500.0,0.00029315,8]
[425056766,1781447508000,-500.0,0.00029315,8]
[425056770,1781447508000,-679.83,0.00029315,8]
[425056768,1781447508000,-10759.52,0.00029315,8]
[425056771,1781447508000,-1143.85,0.00029315,8]
[425056769,1781447508000,-500.0,0.00029315,8]
[425056776,1781447508000,-626.04,0.00029315,8]
[425056774,1781447508000,-1116.26,0.00029315,8]
[425056762,1781447508000,-1056.35,0.00029315,8]
[425056807,1781447508000,-1282.28,0.00029315,8]
[425056802,1781447508000,-500.0,0.00029315,8]
[425056806,1781447508000,-610.83,0.00029315,8]
[425056839,1781447508000,-1828.15,0.00029315,8]
[425056842,1781447508000,-1463.18,0.00029315,8]
[425056838,1781447508000,-500.0,0.00029315,8]
[425056841,1781447508000,-1343.56,0.00029315,8]
[425056844,1781447508000,-595.31,0.00029315,8]
[425056846,1781447508000,-1866.64,0.00029315,8]
[425056847,1781447508000,-500.0,0.00029315,8]
[425056854,1781447508000,-763.45,0.00029315,8]
[425056850,1781447508000,-577.98,0.00029315,8]
[425056849,1781447508000,-500.0,0.00029315,8]
[425056845,1781447508000,-500.0,0.00029315,8]
[425056848,1781447508000,-500.0,0.00029315,8]
[425056837,1781447508000,-1801.16,0.00029315,8]
[425056852,1781447508000,-1413.1,0.00029315,8]
[425056853,1781447508000,-5973.16,0.00029315,8]
[425056856,1781447508000,-1090.91,0.00029315,8]
[425056855,1781447508000,-500.0,0.00029315,8]
[425056857,1781447508000,-3655.13,0.00029315,8]
[425056863,1781447508000,-1440.23,0.00029315,8]
[425056858,1781447508000,-500.0,0.00029315,8]
[425056860,1781447508000,-3216.2,0.00029315,8]
[425056859,1781447508000,-500.0,0.00029315,8]
[425056862,1781447508000,-2562.95,0.00029315,8]
[425056861,1781447508000,-500.0,0.00029315,8]